[Event "Titled Tuesday Blitz March 28 Late 2023"]
[White "Ronka, Erik"]
[Black "Nakamura, Hikaru"]
[WhiteFideId "505080"]
[BlackFideId "2016192"]
[WhiteElo "2264"]
[BlackElo "2879"]
[Result "0-1"]
[Round "01"]
[TimeControl "180+2"]
[Date "2023.03.28"]
[WhiteClock "0:00:04"]
[BlackClock "0:01:06"]

1. e4 {[%clk 0:03:00]}  c6 {[%clk 0:02:56]} 2. d4 {[%clk 0:03:00]}  d5 {[%clk 0:02:56]} 3. Nd2 {[%clk 0:03:01]}  dxe4 {[%clk 0:02:55]} 4. Nxe4 {[%clk 0:03:02]}  Nf6 {[%clk 0:02:56]} 5. Nxf6+ {[%clk 0:03:02]}  exf6 {[%clk 0:02:56]} 6. c3 {[%clk 0:03:03]}  Bd6 {[%clk 0:02:54]} 7. Bd3 {[%clk 0:03:03]}  h5 {[%clk 0:02:54]} 8. Qc2 {[%clk 0:03:03]}  h4 {[%clk 0:02:54]} 9. h3 {[%clk 0:03:02]}  Nd7 {[%clk 0:02:54]} 10. Ne2 {[%clk 0:03:03]}  O-O {[%clk 0:02:54]} 11. O-O {[%clk 0:03:00]}  Re8 {[%clk 0:02:54]} 12. Bd2 {[%clk 0:02:55]}  Nf8 {[%clk 0:02:48]} 13. Rae1 {[%clk 0:02:54]}  Bc7 {[%clk 0:02:44]} 14. Kh1 {[%clk 0:02:41]}  Be6 {[%clk 0:02:30]} 15. f4 {[%clk 0:02:22]}  Qd6 {[%clk 0:02:27]} 16. c4 {[%clk 0:02:11]}  Rad8 {[%clk 0:02:23]} 17. a3 {[%clk 0:01:43]}  b6 {[%clk 0:02:08]} 18. b4 {[%clk 0:01:41]}  Bc8 {[%clk 0:02:01]} 19. c5 {[%clk 0:01:24]}  Qd5 {[%clk 0:01:57]} 20. Bc4 {[%clk 0:01:16]}  Qh5 {[%clk 0:01:54]} 21. f5 {[%clk 0:01:09]}  Nh7 {[%clk 0:01:44]} 22. b5 {[%clk 0:00:36]}  bxc5 {[%clk 0:01:34]} 23. dxc5 {[%clk 0:00:34]}  cxb5 {[%clk 0:01:34]} 24. Bxb5 {[%clk 0:00:34]}  Re5 {[%clk 0:01:34]} 25. Bd3 {[%clk 0:00:21]}  Red5 {[%clk 0:01:30]} 26. Rf3 {[%clk 0:00:21]}  Ng5 {[%clk 0:01:29]} 27. Re3 {[%clk 0:00:20]}  Be5 {[%clk 0:01:26]} 28. Bc3 {[%clk 0:00:18]}  Rxc5 {[%clk 0:01:21]} 29. Qb3 {[%clk 0:00:13]}  Nh7 {[%clk 0:01:13]} 30. Be4 {[%clk 0:00:10]}  Qg5 {[%clk 0:01:12]} 31. Rd3 {[%clk 0:00:09]}  Rxd3 {[%clk 0:01:12]} 32. Bxd3 {[%clk 0:00:10]}  Qe3 {[%clk 0:01:10]} 33. Bxe5 {[%clk 0:00:05]}  Rxe5 {[%clk 0:01:07]} 34. Qb8 {[%clk 0:00:04]}  Qxd3 {[%clk 0:01:05]} 35. Qxc8+ {[%clk 0:00:04]}  Nf8 {[%clk 0:01:06]} 0-1


[Site "https://www.chess.com"]

[Event "Titled Tuesday Blitz March 28 Late 2023"]
[White "Vachier-Lagrave, Maxime"]
[Black "Karamsetty, Jeevan"]
[WhiteFideId "623539"]
[BlackFideId "2025337"]
[WhiteElo "2740"]
[BlackElo "2111"]
[Result "1-0"]
[Round "01"]
[TimeControl "180+2"]
[Date "2023.03.28"]
[WhiteClock "0:01:00"]
[BlackClock "0:00:19"]

1. e4 {[%clk 0:02:59]}  g6 {[%clk 0:02:59]} 2. d4 {[%clk 0:02:56]}  d6 {[%clk 0:02:58]} 3. Nc3 {[%clk 0:02:53]}  Bg7 {[%clk 0:02:55]} 4. Be3 {[%clk 0:02:53]}  a6 {[%clk 0:02:51]} 5. h4 {[%clk 0:02:53]}  h5 {[%clk 0:02:51]} 6. Nf3 {[%clk 0:02:48]}  b5 {[%clk 0:02:47]} 7. Ng5 {[%clk 0:02:48]}  Bb7 {[%clk 0:02:16]} 8. f3 {[%clk 0:02:47]}  Nd7 {[%clk 0:02:13]} 9. Qd2 {[%clk 0:02:45]}  Ngf6 {[%clk 0:02:06]} 10. a4 {[%clk 0:02:44]}  b4 {[%clk 0:01:58]} 11. Bc4 {[%clk 0:02:44]}  e6 {[%clk 0:01:52]} 12. Ne2 {[%clk 0:02:37]}  a5 {[%clk 0:01:29]} 13. Nf4 {[%clk 0:01:26]}  O-O {[%clk 0:01:10]} 14. Bb3 {[%clk 0:01:11]}  Qe7 {[%clk 0:00:52]} 15. O-O-O {[%clk 0:01:05]}  e5 {[%clk 0:00:40]} 16. Nxg6 {[%clk 0:01:02]}  Qd8 {[%clk 0:00:21]} 17. Nxf8 {[%clk 0:01:01]}  Nxf8 {[%clk 0:00:19]} 18. Nxf7 {[%clk 0:01:00]} 1-0


[Site "https://www.chess.com"]

[Event "Titled Tuesday Blitz March 28 Late 2023"]
[White "Karas, Marek"]
[Black "Andreikin, Dmitry"]
[WhiteFideId "14928558"]
[BlackFideId "4158814"]
[WhiteElo "2233"]
[BlackElo "2736"]
[Result "0-1"]
[Round "01"]
[TimeControl "180+2"]
[Date "2023.03.28"]
[WhiteClock "0:00:07"]
[BlackClock "0:00:53"]

1. d4 {[%clk 0:02:58]}  g6 {[%clk 0:02:57]} 2. Nf3 {[%clk 0:02:58]}  Bg7 {[%clk 0:02:58]} 3. e4 {[%clk 0:02:58]}  d6 {[%clk 0:02:57]} 4. Bc4 {[%clk 0:02:58]}  c6 {[%clk 0:02:52]} 5. Bb3 {[%clk 0:02:57]}  a5 {[%clk 0:02:50]} 6. c3 {[%clk 0:02:56]}  Nf6 {[%clk 0:02:48]} 7. Qe2 {[%clk 0:02:54]}  a4 {[%clk 0:02:47]} 8. Bc2 {[%clk 0:02:53]}  O-O {[%clk 0:02:47]} 9. O-O {[%clk 0:02:47]}  Qc7 {[%clk 0:02:46]} 10. e5 {[%clk 0:02:39]}  dxe5 {[%clk 0:02:45]} 11. Nxe5 {[%clk 0:02:39]}  Nbd7 {[%clk 0:02:45]} 12. Nxd7 {[%clk 0:02:33]}  Bxd7 {[%clk 0:02:45]} 13. Na3 {[%clk 0:02:24]}  Rfe8 {[%clk 0:02:35]} 14. Bg5 {[%clk 0:02:19]}  e5 {[%clk 0:02:33]} 15. dxe5 {[%clk 0:02:07]}  Rxe5 {[%clk 0:02:30]} 16. Qd2 {[%clk 0:02:03]}  Rd5 {[%clk 0:01:57]} 17. Qf4 {[%clk 0:01:56]}  Qd8 {[%clk 0:01:55]} 18. Rad1 {[%clk 0:01:45]}  Be6 {[%clk 0:01:54]} 19. Rxd5 {[%clk 0:01:35]}  Nxd5 {[%clk 0:01:55]} 20. Bxd8 {[%clk 0:01:30]}  Nxf4 {[%clk 0:01:55]} 21. Bg5 {[%clk 0:01:28]}  Nd5 {[%clk 0:01:34]} 22. Rd1 {[%clk 0:01:15]}  b5 {[%clk 0:01:32]} 23. Be4 {[%clk 0:01:00]}  Re8 {[%clk 0:01:26]} 24. Bf3 {[%clk 0:00:57]}  b4 {[%clk 0:01:13]} 25. cxb4 {[%clk 0:00:49]}  Bxb2 {[%clk 0:01:07]} 26. Nc4 {[%clk 0:00:47]}  Nc3 {[%clk 0:01:06]} 27. Nxb2 {[%clk 0:00:42]}  a3 {[%clk 0:00:58]} 28. Nd3 {[%clk 0:00:19]}  Nxd1 {[%clk 0:00:57]} 29. Bxd1 {[%clk 0:00:20]}  Bc4 {[%clk 0:00:53]} 30. Bc2 {[%clk 0:00:07]}  Re2 {[%clk 0:00:53]} 0-1


[Site "https://www.chess.com"]

[Event "Titled Tuesday Blitz March 28 Late 2023"]
[White "a-z30"]
[Black "Caruana, Fabiano"]
[BlackFideId "2020009"]
[WhiteElo "2515"]
[BlackElo "2818"]
[Result "0-1"]
[Round "01"]
[TimeControl "180+2"]
[Date "2023.03.28"]
[WhiteClock "0:00:02"]
[BlackClock "0:00:45"]

1. d3 {[%clk 0:02:59]}  d5 {[%clk 0:02:59]} 2. Nf3 {[%clk 0:03:00]}  c6 {[%clk 0:02:59]} 3. g3 {[%clk 0:03:01]}  Nf6 {[%clk 0:02:58]} 4. Bg2 {[%clk 0:03:02]}  Bg4 {[%clk 0:02:58]} 5. O-O {[%clk 0:03:03]}  e6 {[%clk 0:02:58]} 6. h3 {[%clk 0:03:03]}  Bh5 {[%clk 0:02:58]} 7. c4 {[%clk 0:03:02]}  Bd6 {[%clk 0:02:57]} 8. cxd5 {[%clk 0:03:02]}  cxd5 {[%clk 0:02:56]} 9. Nc3 {[%clk 0:03:02]}  Nc6 {[%clk 0:02:55]} 10. e4 {[%clk 0:03:00]}  O-O {[%clk 0:02:49]} 11. exd5 {[%clk 0:02:59]}  Nxd5 {[%clk 0:02:49]} 12. Nxd5 {[%clk 0:02:57]}  exd5 {[%clk 0:02:50]} 13. d4 {[%clk 0:02:43]}  Qb6 {[%clk 0:02:45]} 14. Be3 {[%clk 0:02:26]}  Rfe8 {[%clk 0:02:43]} 15. g4 {[%clk 0:02:18]}  Bg6 {[%clk 0:02:43]} 16. Ne5 {[%clk 0:02:02]}  Bxe5 {[%clk 0:02:39]} 17. dxe5 {[%clk 0:02:00]}  d4 {[%clk 0:02:39]} 18. Bxc6 {[%clk 0:01:54]}  Qxc6 {[%clk 0:02:40]} 19. Qxd4 {[%clk 0:01:50]}  Rad8 {[%clk 0:02:35]} 20. Qf4 {[%clk 0:01:46]}  b6 {[%clk 0:02:33]} 21. Rfd1 {[%clk 0:01:44]}  h6 {[%clk 0:02:30]} 22. Rac1 {[%clk 0:01:42]}  Qe6 {[%clk 0:02:23]} 23. Rd6 {[%clk 0:01:37]}  Qxa2 {[%clk 0:02:18]} 24. Rc7 {[%clk 0:01:11]}  Qxb2 {[%clk 0:02:12]} 25. Kh2 {[%clk 0:00:56]}  Qb1 {[%clk 0:01:54]} 26. h4 {[%clk 0:00:43]}  Qe4 {[%clk 0:01:33]} 27. h5 {[%clk 0:00:36]}  Qxf4+ {[%clk 0:01:33]} 28. Bxf4 {[%clk 0:00:36]}  Be4 {[%clk 0:01:34]} 29. Rxa7 {[%clk 0:00:33]}  b5 {[%clk 0:01:29]} 30. Kg3 {[%clk 0:00:21]}  Rc8 {[%clk 0:01:25]} 31. Rdd7 {[%clk 0:00:13]}  Rc3+ {[%clk 0:01:15]} 32. Kh2 {[%clk 0:00:13]}  Rf3 {[%clk 0:00:55]} 33. Rxf7 {[%clk 0:00:10]}  Rxf2+ {[%clk 0:00:55]} 34. Kg3 {[%clk 0:00:10]}  Rf3+ {[%clk 0:00:55]} 35. Kh4 {[%clk 0:00:08]}  Kh8 {[%clk 0:00:54]} 36. e6 {[%clk 0:00:02]}  Rxe6 {[%clk 0:00:45]} 0-1


[Site "https://www.chess.com"]

[Event "Titled Tuesday Blitz March 28 Late 2023"]
[White "Firouzja, Alireza"]
[Black "Vovk, Orest"]
[WhiteFideId "12573981"]
[BlackFideId "14113490"]
[WhiteElo "2904"]
[BlackElo "2215"]
[Result "1-0"]
[Round "01"]
[TimeControl "180+2"]
[Date "2023.03.28"]
[WhiteClock "0:01:25"]
[BlackClock "0:00:56"]

1. d4 {[%clk 0:03:00]}  h6 {[%clk 0:02:55]} 2. e4 {[%clk 0:02:59]}  g5 {[%clk 0:02:54]} 3. h4 {[%clk 0:02:53]}  g4 {[%clk 0:02:54]} 4. Nc3 {[%clk 0:02:50]}  Bg7 {[%clk 0:02:53]} 5. Nge2 {[%clk 0:02:48]}  c5 {[%clk 0:02:51]} 6. dxc5 {[%clk 0:02:47]}  Qa5 {[%clk 0:02:48]} 7. Be3 {[%clk 0:02:46]}  g3 {[%clk 0:02:43]} 8. f3 {[%clk 0:02:42]}  d6 {[%clk 0:02:30]} 9. cxd6 {[%clk 0:02:40]}  Nc6 {[%clk 0:02:29]} 10. Qd2 {[%clk 0:02:28]}  Be6 {[%clk 0:02:26]} 11. Nd4 {[%clk 0:02:22]}  O-O-O {[%clk 0:02:02]} 12. Nxc6 {[%clk 0:02:18]}  bxc6 {[%clk 0:02:01]} 13. Bf4 {[%clk 0:02:11]}  Be5 {[%clk 0:01:43]} 14. Bxe5 {[%clk 0:01:58]}  Qxe5 {[%clk 0:01:43]} 15. Qe3 {[%clk 0:01:57]}  Qxd6 {[%clk 0:01:31]} 16. Rd1 {[%clk 0:01:53]}  Qc7 {[%clk 0:01:29]} 17. Rxd8+ {[%clk 0:01:53]}  Qxd8 {[%clk 0:01:20]} 18. Qxa7 {[%clk 0:01:52]}  Qc7 {[%clk 0:01:18]} 19. Ba6+ {[%clk 0:01:43]}  Kd7 {[%clk 0:01:16]} 20. Qd4+ {[%clk 0:01:44]}  Qd6 {[%clk 0:01:11]} 21. Qxh8 {[%clk 0:01:45]}  Qc5 {[%clk 0:01:11]} 22. Qxg8 {[%clk 0:01:27]}  Qf2+ {[%clk 0:01:06]} 23. Kd1 {[%clk 0:01:28]}  Qxg2 {[%clk 0:01:05]} 24. Re1 {[%clk 0:01:27]}  Qxf3+ {[%clk 0:01:03]} 25. Kc1 {[%clk 0:01:28]}  g2 {[%clk 0:00:56]} 26. Rd1+ {[%clk 0:01:25]} 1-0


[Site "https://www.chess.com"]

[Event "Titled Tuesday Blitz March 28 Late 2023"]
[White "Mortazavi, Ali"]
[Black "Fedoseev, Vladimir"]
[WhiteFideId "401323"]
[BlackFideId "24130737"]
[WhiteElo "2339"]
[BlackElo "2752"]
[Result "0-1"]
[Round "01"]
[TimeControl "180+2"]
[Date "2023.03.28"]
[WhiteClock "0:00:01"]
[BlackClock "0:00:04"]

1. Nf3 {[%clk 0:02:59]}  Nf6 {[%clk 0:02:59]} 2. g3 {[%clk 0:02:59]}  g6 {[%clk 0:02:59]} 3. Bg2 {[%clk 0:03:00]}  Bg7 {[%clk 0:02:59]} 4. O-O {[%clk 0:03:00]}  O-O {[%clk 0:03:00]} 5. d3 {[%clk 0:03:01]}  d5 {[%clk 0:03:00]} 6. Nbd2 {[%clk 0:02:58]}  d4 {[%clk 0:03:00]} 7. Nb3 {[%clk 0:02:54]}  Nc6 {[%clk 0:02:59]} 8. Bd2 {[%clk 0:02:48]}  Nd5 {[%clk 0:02:56]} 9. Qc1 {[%clk 0:02:39]}  a5 {[%clk 0:02:55]} 10. Bh6 {[%clk 0:02:33]}  e5 {[%clk 0:02:54]} 11. Bxg7 {[%clk 0:02:33]}  Kxg7 {[%clk 0:02:55]} 12. c4 {[%clk 0:02:30]}  Nf6 {[%clk 0:02:46]} 13. Nbd2 {[%clk 0:02:24]}  Re8 {[%clk 0:02:43]} 14. b3 {[%clk 0:02:17]}  h6 {[%clk 0:02:36]} 15. a3 {[%clk 0:02:10]}  Qe7 {[%clk 0:02:28]} 16. Qb2 {[%clk 0:02:01]}  g5 {[%clk 0:02:25]} 17. Rab1 {[%clk 0:01:55]}  Bf5 {[%clk 0:02:24]} 18. b4 {[%clk 0:01:50]}  axb4 {[%clk 0:02:16]} 19. axb4 {[%clk 0:01:50]}  Ra4 {[%clk 0:01:48]} 20. b5 {[%clk 0:01:50]}  Nb8 {[%clk 0:01:47]} 21. Ne1 {[%clk 0:01:29]}  b6 {[%clk 0:01:46]} 22. Nc2 {[%clk 0:01:29]}  Nbd7 {[%clk 0:01:45]} 23. Nb4 {[%clk 0:01:29]}  Nc5 {[%clk 0:01:43]} 24. Nc6 {[%clk 0:01:29]}  Qd6 {[%clk 0:01:42]} 25. Ra1 {[%clk 0:01:19]}  Rxa1 {[%clk 0:01:38]} 26. Rxa1 {[%clk 0:01:19]}  Bg4 {[%clk 0:01:38]} 27. Nf3 {[%clk 0:01:06]}  Nfd7 {[%clk 0:01:32]} 28. h3 {[%clk 0:00:58]}  Be6 {[%clk 0:01:21]} 29. Ra7 {[%clk 0:00:47]}  f6 {[%clk 0:01:20]} 30. Nd2 {[%clk 0:00:44]}  f5 {[%clk 0:01:15]} 31. Nf3 {[%clk 0:00:34]}  Bf7 {[%clk 0:01:14]} 32. Qa1 {[%clk 0:00:29]}  Bh5 {[%clk 0:01:03]} 33. Nfxd4 {[%clk 0:00:20]}  exd4 {[%clk 0:01:01]} 34. Nxd4 {[%clk 0:00:21]}  Kg6 {[%clk 0:00:50]} 35. Nxf5 {[%clk 0:00:20]}  Kxf5 {[%clk 0:00:47]} 36. Qg7 {[%clk 0:00:20]}  Bxe2 {[%clk 0:00:19]} 37. Qf7+ {[%clk 0:00:14]}  Nf6 {[%clk 0:00:20]} 38. g4+ {[%clk 0:00:12]}  Kf4 {[%clk 0:00:20]} 39. Rxc7 {[%clk 0:00:11]}  Bxd3 {[%clk 0:00:19]} 40. Rc6 {[%clk 0:00:09]}  Rf8 {[%clk 0:00:11]} 41. Qg7 {[%clk 0:00:07]}  Qd8 {[%clk 0:00:07]} 42. Qxh6 {[%clk 0:00:04]}  Be4 {[%clk 0:00:07]} 43. h4 {[%clk 0:00:03]}  Nxg4 {[%clk 0:00:06]} 44. Qh5 {[%clk 0:00:01]}  Bxg2 {[%clk 0:00:05]} 45. Kxg2 {[%clk 0:00:01]}  Ne5 {[%clk 0:00:04]} 0-1


[Site "https://www.chess.com"]

[Event "Titled Tuesday Blitz March 28 Late 2023"]
[White "Sarana, Alexey"]
[Black "Pires, Marcos Vinicius Torsani"]
[WhiteFideId "24133795"]
[BlackFideId "2118939"]
[WhiteElo "2714"]
[BlackElo "2273"]
[Result "1-0"]
[Round "01"]
[TimeControl "180+2"]
[Date "2023.03.28"]
[WhiteClock "0:01:09"]
[BlackClock "0:00:33"]

1. d4 {[%clk 0:03:00]}  Nf6 {[%clk 0:02:57]} 2. c4 {[%clk 0:02:59]}  g6 {[%clk 0:02:57]} 3. Nc3 {[%clk 0:02:59]}  Bg7 {[%clk 0:02:56]} 4. e4 {[%clk 0:02:58]}  d6 {[%clk 0:02:56]} 5. Be2 {[%clk 0:02:59]}  O-O {[%clk 0:02:56]} 6. Be3 {[%clk 0:02:59]}  c5 {[%clk 0:02:44]} 7. d5 {[%clk 0:02:59]}  e6 {[%clk 0:02:43]} 8. Nf3 {[%clk 0:02:59]}  exd5 {[%clk 0:02:42]} 9. cxd5 {[%clk 0:03:00]}  a6 {[%clk 0:02:41]} 10. a4 {[%clk 0:03:00]}  Bg4 {[%clk 0:02:38]} 11. Nd2 {[%clk 0:03:00]}  Bxe2 {[%clk 0:02:38]} 12. Qxe2 {[%clk 0:03:01]}  Nbd7 {[%clk 0:02:36]} 13. O-O {[%clk 0:03:02]}  Ne5 {[%clk 0:02:30]} 14. h3 {[%clk 0:03:01]}  Qe7 {[%clk 0:02:20]} 15. Rae1 {[%clk 0:02:49]}  Rab8 {[%clk 0:02:16]} 16. f4 {[%clk 0:02:42]}  Ned7 {[%clk 0:02:15]} 17. Bf2 {[%clk 0:02:39]}  Rfe8 {[%clk 0:02:08]} 18. Bh4 {[%clk 0:02:36]}  Qf8 {[%clk 0:02:08]} 19. e5 {[%clk 0:02:22]}  dxe5 {[%clk 0:02:04]} 20. f5 {[%clk 0:02:23]}  b5 {[%clk 0:01:52]} 21. fxg6 {[%clk 0:02:22]}  fxg6 {[%clk 0:01:51]} 22. Nde4 {[%clk 0:02:21]}  c4 {[%clk 0:01:34]} 23. Nxf6+ {[%clk 0:02:16]}  Nxf6 {[%clk 0:01:26]} 24. Bxf6 {[%clk 0:02:05]}  Bxf6 {[%clk 0:01:21]} 25. Ne4 {[%clk 0:02:06]}  Rb6 {[%clk 0:01:18]} 26. a5 {[%clk 0:02:04]}  Rd6 {[%clk 0:01:16]} 27. Rf3 {[%clk 0:01:50]}  Qe7 {[%clk 0:01:11]} 28. Ref1 {[%clk 0:01:49]}  Bg7 {[%clk 0:01:08]} 29. Rf7 {[%clk 0:01:47]}  Qd8 {[%clk 0:01:03]} 30. Nxd6 {[%clk 0:01:29]}  Qxd6 {[%clk 0:01:04]} 31. Qf2 {[%clk 0:01:23]}  Qxd5 {[%clk 0:00:53]} 32. Qa7 {[%clk 0:01:19]}  Bh6 {[%clk 0:00:42]} 33. Qxa6 {[%clk 0:01:11]}  Be3+ {[%clk 0:00:38]} 34. Kh1 {[%clk 0:01:11]}  Qxf7 {[%clk 0:00:34]} 35. Rxf7 {[%clk 0:01:11]}  Kxf7 {[%clk 0:00:35]} 36. Qb7+ {[%clk 0:01:09]}  Re7 {[%clk 0:00:34]} 37. Qf3+ {[%clk 0:01:09]}  Bf4 {[%clk 0:00:32]} 38. g3 {[%clk 0:01:09]}  g5 {[%clk 0:00:32]} 39. gxf4 {[%clk 0:01:09]}  e4 {[%clk 0:00:33]} 40. Qh5+ {[%clk 0:01:09]} 1-0


[Site "https://www.chess.com"]

[Event "Titled Tuesday Blitz March 28 Late 2023"]
[White "Sadhwani, Raunak"]
[Black "Hirneise, Jens"]
[WhiteFideId "35093487"]
[BlackFideId "24614734"]
[WhiteElo "2631"]
[BlackElo "2345"]
[Result "1-0"]
[Round "01"]
[TimeControl "180+2"]
[Date "2023.03.28"]
[WhiteClock "0:02:05"]
[BlackClock "0:01:36"]

1. Nf3 {[%clk 0:02:58]}  d5 {[%clk 0:02:53]} 2. b3 {[%clk 0:02:58]}  g6 {[%clk 0:02:51]} 3. Bb2 {[%clk 0:02:59]}  Nf6 {[%clk 0:02:51]} 4. g3 {[%clk 0:02:58]}  Bg7 {[%clk 0:02:52]} 5. Bg2 {[%clk 0:02:59]}  O-O {[%clk 0:02:52]} 6. c4 {[%clk 0:02:59]}  c6 {[%clk 0:02:51]} 7. O-O {[%clk 0:02:59]}  Bf5 {[%clk 0:02:50]} 8. d3 {[%clk 0:02:59]}  a5 {[%clk 0:02:47]} 9. a3 {[%clk 0:02:56]}  a4 {[%clk 0:02:44]} 10. b4 {[%clk 0:02:56]}  dxc4 {[%clk 0:02:40]} 11. dxc4 {[%clk 0:02:57]}  Bxb1 {[%clk 0:02:38]} 12. Qxb1 {[%clk 0:02:55]}  Qc8 {[%clk 0:02:36]} 13. Rd1 {[%clk 0:02:52]}  Nbd7 {[%clk 0:02:36]} 14. Qc2 {[%clk 0:02:49]}  Nb6 {[%clk 0:02:33]} 15. c5 {[%clk 0:02:41]}  Nbd5 {[%clk 0:02:32]} 16. e4 {[%clk 0:02:42]}  Nc7 {[%clk 0:02:32]} 17. Ne5 {[%clk 0:02:41]}  Qe6 {[%clk 0:02:24]} 18. Nc4 {[%clk 0:02:41]}  Rad8 {[%clk 0:02:16]} 19. Nb6 {[%clk 0:02:39]}  Rxd1+ {[%clk 0:02:14]} 20. Rxd1 {[%clk 0:02:40]}  Ng4 {[%clk 0:02:07]} 21. Bxg7 {[%clk 0:02:26]}  Kxg7 {[%clk 0:02:08]} 22. h3 {[%clk 0:02:11]}  Nh6 {[%clk 0:02:05]} 23. Qxa4 {[%clk 0:02:11]}  Nb5 {[%clk 0:02:03]} 24. Qc2 {[%clk 0:02:10]}  f6 {[%clk 0:01:57]} 25. a4 {[%clk 0:02:10]}  Nc7 {[%clk 0:01:52]} 26. Rd7 {[%clk 0:02:09]}  Na6 {[%clk 0:01:51]} 27. Qc3 {[%clk 0:02:06]}  Rb8 {[%clk 0:01:47]} 28. b5 {[%clk 0:02:04]}  cxb5 {[%clk 0:01:36]} 29. axb5 {[%clk 0:02:05]} 1-0


[Site "https://www.chess.com"]

[Event "Titled Tuesday Blitz March 28 Late 2023"]
[White "Dauner, Benedikt"]
[Black "Makarian, Rudik"]
[WhiteFideId "16225899"]
[BlackFideId "44105681"]
[WhiteElo "2205"]
[BlackElo "2436"]
[Result "1-0"]
[Round "01"]
[TimeControl "180+2"]
[Date "2023.03.28"]
[WhiteClock "0:00:05"]
[BlackClock "0:00:13"]

1. e4 {[%clk 0:02:59]}  c5 {[%clk 0:02:59]} 2. Nf3 {[%clk 0:02:59]}  e6 {[%clk 0:02:58]} 3. c3 {[%clk 0:02:59]}  d5 {[%clk 0:02:57]} 4. exd5 {[%clk 0:02:58]}  Qxd5 {[%clk 0:02:58]} 5. d4 {[%clk 0:02:58]}  Nf6 {[%clk 0:02:59]} 6. Na3 {[%clk 0:02:55]}  Be7 {[%clk 0:02:41]} 7. Nb5 {[%clk 0:02:50]}  Qd8 {[%clk 0:02:26]} 8. dxc5 {[%clk 0:02:31]}  Bxc5 {[%clk 0:02:16]} 9. Qxd8+ {[%clk 0:02:28]}  Kxd8 {[%clk 0:02:17]} 10. Bf4 {[%clk 0:02:25]}  Nd5 {[%clk 0:02:10]} 11. Bg3 {[%clk 0:02:21]}  a6 {[%clk 0:02:05]} 12. Nd6 {[%clk 0:02:20]}  Ke7 {[%clk 0:02:05]} 13. Ne4 {[%clk 0:02:13]}  Ba7 {[%clk 0:01:58]} 14. c4 {[%clk 0:02:02]}  Nf6 {[%clk 0:01:47]} 15. Bd6+ {[%clk 0:01:59]}  Ke8 {[%clk 0:01:36]} 16. Nxf6+ {[%clk 0:01:56]}  gxf6 {[%clk 0:01:36]} 17. c5 {[%clk 0:01:50]}  Bd7 {[%clk 0:01:23]} 18. b4 {[%clk 0:01:48]}  Nc6 {[%clk 0:01:21]} 19. a3 {[%clk 0:01:45]}  Bb8 {[%clk 0:01:20]} 20. Rd1 {[%clk 0:01:43]}  Bxd6 {[%clk 0:01:20]} 21. Rxd6 {[%clk 0:01:43]}  Ke7 {[%clk 0:01:20]} 22. Be2 {[%clk 0:01:42]}  Rhc8 {[%clk 0:01:13]} 23. O-O {[%clk 0:01:41]}  a5 {[%clk 0:01:14]} 24. Rfd1 {[%clk 0:01:40]}  Be8 {[%clk 0:01:14]} 25. b5 {[%clk 0:01:11]}  Ne5 {[%clk 0:01:10]} 26. Nxe5 {[%clk 0:01:11]}  fxe5 {[%clk 0:01:08]} 27. Rb6 {[%clk 0:01:12]}  Rxc5 {[%clk 0:00:36]} 28. Rxb7+ {[%clk 0:01:11]}  Kf6 {[%clk 0:00:36]} 29. a4 {[%clk 0:01:00]}  Rac8 {[%clk 0:00:33]} 30. Ra7 {[%clk 0:00:52]}  Rc2 {[%clk 0:00:33]} 31. Bf1 {[%clk 0:00:50]}  Ra2 {[%clk 0:00:33]} 32. Rxa5 {[%clk 0:00:47]}  Rcc2 {[%clk 0:00:33]} 33. Ra8 {[%clk 0:00:45]}  Ke7 {[%clk 0:00:32]} 34. b6 {[%clk 0:00:40]}  Bc6 {[%clk 0:00:20]} 35. Ra7+ {[%clk 0:00:18]}  Kf6 {[%clk 0:00:20]} 36. Rc7 {[%clk 0:00:14]}  Bxa4 {[%clk 0:00:18]} 37. Rxc2 {[%clk 0:00:08]}  Rxc2 {[%clk 0:00:16]} 38. Rb1 {[%clk 0:00:07]}  Rc8 {[%clk 0:00:14]} 39. b7 {[%clk 0:00:07]}  Rb8 {[%clk 0:00:15]} 40. Ba6 {[%clk 0:00:07]}  Ke7 {[%clk 0:00:14]} 41. Rc1 {[%clk 0:00:07]}  Bd7 {[%clk 0:00:13]} 42. g4 {[%clk 0:00:04]}  Kd8 {[%clk 0:00:12]} 43. Kg2 {[%clk 0:00:04]}  f5 {[%clk 0:00:12]} 44. Kg3 {[%clk 0:00:04]}  Ke7 {[%clk 0:00:07]} 45. g5 {[%clk 0:00:04]}  e4 {[%clk 0:00:06]} 46. Rc8 {[%clk 0:00:04]}  Rxc8 {[%clk 0:00:05]} 47. bxc8=Q {[%clk 0:00:05]}  Bxc8 {[%clk 0:00:05]} 48. Bxc8 {[%clk 0:00:06]}  Kd6 {[%clk 0:00:05]} 49. Kf4 {[%clk 0:00:06]}  Ke7 {[%clk 0:00:05]} 50. h4 {[%clk 0:00:06]}  Kd6 {[%clk 0:00:05]} 51. h5 {[%clk 0:00:06]}  Ke7 {[%clk 0:00:06]} 52. h6 {[%clk 0:00:06]}  Kf7 {[%clk 0:00:06]} 53. Bb7 {[%clk 0:00:05]}  Kg6 {[%clk 0:00:05]} 54. Bc6 {[%clk 0:00:05]}  e5+ {[%clk 0:00:06]} 55. Kxe5 {[%clk 0:00:04]}  Kxg5 {[%clk 0:00:06]} 56. Bd7 {[%clk 0:00:01]}  e3 {[%clk 0:00:05]} 57. fxe3 {[%clk 0:00:01]}  f4 {[%clk 0:00:06]} 58. exf4+ {[%clk 0:00:01]}  Kxh6 {[%clk 0:00:07]} 59. Bg4 {[%clk 0:00:01]}  Kg7 {[%clk 0:00:08]} 60. Be2 {[%clk 0:00:02]}  h5 {[%clk 0:00:09]} 61. Kf5 {[%clk 0:00:02]}  h4 {[%clk 0:00:10]} 62. Kg4 {[%clk 0:00:03]}  h3 {[%clk 0:00:10]} 63. Kxh3 {[%clk 0:00:03]}  Kf6 {[%clk 0:00:11]} 64. Kg4 {[%clk 0:00:03]}  Ke6 {[%clk 0:00:12]} 65. f5+ {[%clk 0:00:04]}  Kf6 {[%clk 0:00:13]} 66. Kf4 {[%clk 0:00:05]} 1-0


[Site "https://www.chess.com"]